bitfinex/quotes_BTCUSD_20220202
["timestamp","ask_amount","ask_price","bid_price","bid_amount"]
[1643787597166,0.00113252,38304.0,38301.0,0.065273]
[1643787597365,0.35112,38303.0,38301.0,0.065273]
[1643787598370,0.00113252,38304.0,38301.0,0.065273]
[1643787599216,0.35112,38303.0,38301.0,0.065273]
[1643787599515,0.35225251,38304.0,38301.0,0.065273]
[1643787600517,0.35112,38304.0,38301.0,0.065273]
[1643787600717,0.35225251,38304.0,38301.0,0.065273]
[1643787601118,0.35225251,38304.0,38301.0,0.130546]
[1643787601720,0.35112,38304.0,38301.0,0.130546]
[1643787602022,0.35225251,38304.0,38301.0,0.130546]
[1643787602867,0.35225251,38304.0,38301.0,0.180546]
[1643787602868,0.35112,38304.0,38301.0,0.180546]
[1643787603069,0.00113251,38304.0,38301.0,0.180546]
[1643787603870,0.00113251,38304.0,38302.0,0.065269]
[1643787604068,0.33647603,38307.0,38302.0,0.065269]
[1643787604270,0.00113251,38304.0,38302.0,0.130538]
[1643787604870,0.00113251,38304.0,38302.0,0.40983332]
[1643787605269,0.33647603,38307.0,38302.0,0.40983332]
[1643787605471,0.00113251,38305.0,38302.0,0.130538]
[1643787606519,0.33647603,38307.0,38302.0,0.130538]
[1643787606716,0.0011325,38305.0,38302.0,0.130538]
[1643787607119,0.0011325,38305.0,38303.0,0.065269]
[1643787607319,0.0011325,38305.0,38303.0,0.06519237]
[1643787607820,0.17661796,38310.0,38304.0,0.36840194]
[1643787607821,0.00113249,38306.0,38304.0,0.36840194]
[1643787608019,0.00113249,38306.0,38305.0,0.7878735]
[1643787608218,0.00113249,38306.0,38305.0,0.8878735]
[1643787608621,0.00113249,38306.0,38305.0,1.2389935]
[1643787608819,0.50714715,38315.0,38305.0,1.2389935]
[1643787609022,0.33056126,38315.0,38314.0,0.25473553]
[1643787609220,0.45112,38315.0,38312.0,0.26175318]
[1643787609417,0.35112,38314.0,38312.0,0.31175318]
[1643787609620,0.50714715,38316.0,38312.0,0.31175318]
[1643787609919,0.50575658,38318.0,38312.0,0.31175318]
[1643787609920,0.33056126,38317.0,38312.0,0.26175318]
[1643787610170,0.35112,38316.0,38312.0,0.26175318]
[1643787610370,0.35225236,38316.0,38312.0,0.26175318]
[1643787610572,0.00113236,38316.0,38313.0,0.21556733]
[1643787610768,0.00113236,38316.0,38313.0,0.05]
[1643787610970,0.00113236,38316.0,38313.0,0.39863488]
[1643787611371,0.33056126,38319.0,38313.0,0.39863488]
[1643787611573,0.00113376,38316.0,38313.0,0.39863488]
[1643787611771,0.00113376,38316.0,38314.0,0.06524499]
[1643787612174,0.00113376,38316.0,38313.0,0.05]
[1643787612370,0.00113376,38316.0,38315.0,0.1]
[1643787612570,0.00113376,38316.0,38315.0,0.05]
[1643787612571,0.35112,38316.0,38315.0,0.05]
[1643787612772,0.00113376,38316.0,38312.0,0.05]
[1643787612971,0.00113376,38316.0,38311.0,0.2804994]
[1643787613171,0.00113376,38316.0,38311.0,0.2304994]
[1643787613371,0.30180418,38317.0,38311.0,0.52897201]
[1643787613573,0.47302794,38319.0,38311.0,0.52897201]
[1643787613826,0.47302794,38319.0,38312.0,0.065255]
[1643787614029,0.64961383,38319.0,38312.0,0.065255]
[1643787614231,0.1,38318.0,38311.0,0.05]
[1643787614429,0.48565658,38318.0,38308.0,0.13050861]
[1643787614629,0.48565658,38318.0,38305.0,0.130519]
[1643787614827,0.73677658,38317.0,38305.0,0.130519]
[1643787615227,0.73677658,38317.0,38306.0,0.38808982]
[1643787615228,0.24192992,38311.0,38306.0,0.38808982]
[1643787615428,0.28207212,38312.0,38306.0,0.26858982]
[1643787615828,0.28207212,38312.0,38307.0,0.05]
[1643787616429,0.25574732,38311.0,38307.0,0.05]
[1643787618670,0.35574732,38311.0,38306.0,0.26858982]
[1643787621618,0.25574732,38311.0,38306.0,0.26858982]
[1643787621818,0.35574732,38311.0,38307.0,0.065262]
[1643787622520,0.35574732,38311.0,38306.0,0.26858982]
[1643787624019,0.28207212,38312.0,38307.0,0.05]
[1643787624220,0.38207212,38312.0,38307.0,0.115262]
[1643787625169,0.27489649,38311.0,38307.0,0.115262]
[1643787625366,0.38207212,38312.0,38307.0,0.115262]
[1643787628169,0.38207212,38312.0,38304.0,0.550519]
[1643787628369,0.28207212,38312.0,38305.0,0.1]
[1643787629714,0.28207212,38312.0,38305.0,0.05]
[1643787630116,0.38207212,38312.0,38305.0,0.05]
[1643787635571,0.38207212,38312.0,38306.0,0.24095151]
[1643787636173,0.38207212,38312.0,38304.0,0.47084821]
[1643787636412,0.38207212,38312.0,38304.0,0.47]
[1643787636614,0.38207212,38312.0,38305.0,0.13052787]
[1643787637615,0.38207212,38312.0,38306.0,0.27134167]
[1643787637814,0.1,38312.0,38306.0,0.27134167]
[1643787638013,0.45350031,38316.0,38306.0,0.27134167]
[1643787638014,0.45350031,38316.0,38307.0,0.26900824]
[1643787638217,0.43174242,38315.0,38308.0,0.06526]
[1643787638415,0.43174242,38315.0,38309.0,0.24129832]
[1643787638614,0.43174242,38315.0,38307.0,0.29129832]
[1643787638816,0.43174242,38315.0,38314.0,0.22384136]
[1643787646623,0.43174242,38315.0,38314.0,0.50139237]
[1643787647421,0.1211,38322.0,38314.0,0.50139237]
[1643787647671,0.00116289,38318.0,38315.0,0.130492]
[1643787647871,0.00116289,38318.0,38315.0,0.180492]
[1643787648469,0.34767485,38323.0,38315.0,0.24573677]
[1643787648670,0.00122245,38318.0,38317.0,0.065244]
[1643787649671,0.1,38323.0,38317.0,0.065244]
[1643787649869,0.00122244,38319.0,38317.0,0.19573128]
[1643787650070,0.00122244,38319.0,38318.0,0.05]
[1643787650471,0.00122244,38319.0,38318.0,0.1]
[1643787650673,0.00122244,38319.0,38318.0,0.05]
[1643787650873,0.1,38323.0,38317.0,0.24573128]
[1643787651072,0.00107264,38320.0,38317.0,0.24573128]
[1643787651725,0.00107264,38320.0,38318.0,0.05]
[1643787651925,0.00107264,38320.0,38319.0,0.283585]
[1643787652131,0.50381391,38327.0,38319.0,0.52488332]
[1643787652132,0.33078335,38326.0,38319.0,0.52488332]
[1643787652326,0.95121391,38328.0,38319.0,0.57488332]
[1643787652327,0.00101282,38321.0,38319.0,0.57488332]
[1643787652627,0.00101282,38321.0,38320.0,0.94476256]
[1643787652826,0.00101282,38321.0,38320.0,1.04476256]
[1643787653026,0.00101282,38321.0,38320.0,1.3134037]
[1643787653229,0.22959972,38331.0,38320.0,0.84174238]
[1643787653426,0.22959972,38331.0,38328.0,0.2221308]
[1643787653625,0.76855928,38333.0,38328.0,0.35258246]
[1643787653626,0.65505928,38333.0,38328.0,0.35258246]
[1643787653827,0.35112,38332.0,38325.0,0.130452]
[1643787654025,0.35112,38332.0,38320.0,0.419637]
[1643787654026,0.33078335,38330.0,38320.0,0.05]
[1643787654227,0.33078335,38330.0,38318.0,0.05]
[1643787654228,0.33078335,38328.0,38318.0,0.05]
[1643787654425,0.69241832,38329.0,38313.0,0.6748]
[1643787654426,0.92320167,38327.0,38313.0,0.6748]
[1643787654628,0.33624729,38321.0,38317.0,0.15084022]
[1643787654826,0.63710659,38321.0,38317.0,0.15084022]
[1643787655079,0.63710659,38321.0,38317.0,0.02035722]
[1643787655474,0.63710659,38321.0,38316.0,0.33948635]
[1643787656074,0.00105233,38320.0,38316.0,0.38948635]
[1643787656275,0.00105233,38320.0,38316.0,0.43948635]
[1643787656877,0.63710659,38321.0,38316.0,0.43948635]
[1643787657178,0.00105233,38320.0,38316.0,0.50473435]
[1643787657675,0.00105233,38320.0,38316.0,0.295736]
[1643787657877,0.21883963,38320.0,38316.0,0.295736]
[1643787658078,0.2177873,38320.0,38316.0,0.1]
[1643787658276,0.2188345,38320.0,38313.0,0.05]
[1643787658478,0.2188345,38320.0,38312.0,0.695455]
[1643787658479,0.2188345,38320.0,38312.0,0.745455]
[1643787658675,0.2188345,38320.0,38313.0,0.0651915]
[1643787658924,0.29894683,38318.0,38313.0,0.0651915]
[1643787659124,0.23141938,38317.0,38313.0,0.0651915]
[1643787659824,0.221541,38317.0,38313.0,0.0651915]
[1643787660024,0.29999102,38318.0,38313.0,0.0651915]
[1643787660225,0.39999102,38318.0,38313.0,0.0651915]
[1643787660423,0.39894683,38318.0,38313.0,0.0651915]
[1643787660624,0.29894683,38318.0,38313.0,0.0651915]
[1643787660827,0.39999102,38318.0,38313.0,0.0651915]
[1643787661328,0.22147362,38317.0,38313.0,0.0651915]
[1643787661726,0.2232925,38317.0,38313.0,0.0651915]
[1643787662126,0.2232925,38317.0,38313.0,0.06479386]
[1643787662581,0.22048552,38317.0,38313.0,0.06479386]
[1643787662769,0.39999204,38318.0,38313.0,0.06479386]
[1643787662969,0.29894683,38318.0,38313.0,0.06479386]
[1643787663170,0.29999273,38318.0,38313.0,0.06479386]
[1643787664069,0.22039735,38317.0,38313.0,0.06479386]
[1643787664270,0.48281045,38317.0,38315.0,1.0]
[1643787664470,0.22110953,38316.0,38315.0,1.0]
[1643787664669,0.22110953,38316.0,38315.0,1.05]
[1643787665473,0.22219453,38317.0,38315.0,1.05]
[1643787665871,0.35219252,38318.0,38315.0,0.55]
[1643787666322,0.2596032,38316.0,38315.0,0.55]
[1643787666522,0.35219252,38318.0,38315.0,0.55]
[1643787666523,0.35114683,38318.0,38315.0,0.55]
[1643787666822,0.35219237,38318.0,38315.0,0.55]
[1643787667823,0.35114683,38318.0,38315.0,0.5]
[1643787668123,0.35219237,38318.0,38315.0,0.5]
[1643787668923,0.35114683,38318.0,38315.0,0.5]
[1643787669123,0.35219241,38318.0,38315.0,0.5]
[1643787669625,0.35219241,38318.0,38315.0,0.565253]
[1643787669823,0.35219241,38318.0,38315.0,0.615253]
[1643787670074,0.35114683,38318.0,38315.0,0.615253]
[1643787670269,0.35219245,38318.0,38315.0,0.615253]
[1643787671272,0.35114683,38318.0,38315.0,0.615253]
[1643787671472,0.35219245,38318.0,38315.0,0.615253]
[1643787672573,0.25420125,38317.0,38315.0,0.565253]
[1643787672776,0.25420125,38317.0,38315.0,0.5]
[1643787672777,0.49349832,38316.0,38315.0,0.5]
[1643787672975,0.60332,38316.0,38315.0,0.5]
[1643787673173,0.50332,38316.0,38315.0,0.5]
[1643787673374,0.50332,38316.0,38307.0,0.630521]
[1643787673575,0.23181338,38312.0,38308.0,0.5]
[1643787674419,0.23181338,38312.0,38307.0,0.42445987]
[1643787674620,0.23181338,38312.0,38307.0,0.29393887]
[1643787674819,0.4568768,38312.0,38307.0,0.24393887]
[1643787675224,0.1,38311.0,38307.0,0.24393887]
[1643787675822,0.1,38311.0,38307.0,0.29393887]
[1643787676222,0.1,38311.0,38307.0,0.35920387]
[1643787676723,0.23181338,38312.0,38307.0,0.30920387]
[1643787676923,0.44966538,38312.0,38307.0,0.065265]
[1643787677125,0.44966538,38312.0,38305.0,0.25637117]
[1643787677324,0.1,38311.0,38306.0,0.5]
[1643787677968,0.1,38311.0,38307.0,0.24092296]
[1643787678571,0.23181338,38312.0,38307.0,0.24092296]
[1643787678773,0.23181338,38312.0,38307.0,0.29092296]
[1643787678977,0.452593,38312.0,38307.0,0.29092296]
[1643787679172,0.552593,38312.0,38306.0,0.5]
[1643787679573,0.33181338,38312.0,38306.0,0.5]
[1643787680874,0.33181338,38312.0,38306.0,0.71577965]
[1643787682719,0.33174558,38312.0,38306.0,0.71577965]
[1643787684520,0.33174558,38312.0,38307.0,0.065266]
[1643787685571,0.33174558,38312.0,38307.0,0.130528]
[1643787685572,0.23174558,38312.0,38307.0,0.130528]
[1643787685769,0.23174558,38312.0,38308.0,0.5]
[1643787689823,0.23174558,38312.0,38308.0,1.0]
[1643787690425,0.23174558,38312.0,38308.0,1.065262]
[1643787691125,0.1,38315.0,38308.0,1.065262]
[1643787691325,0.33396012,38316.0,38308.0,1.065262]
[1643787691626,0.53916664,38316.0,38308.0,1.115262]
[1643787692225,0.76784995,38316.0,38308.0,1.115262]
[1643787692869,0.53388983,38316.0,38308.0,1.115262]
[1643787693070,0.75281256,38316.0,38308.0,1.065262]
[1643787693269,0.065266,38315.0,38308.0,1.0]
[1643787694575,0.32868331,38316.0,38311.0,0.24928019]
[1643787694774,0.35112,38315.0,38311.0,0.74928019]
[1643787695472,0.1,38314.0,38311.0,0.74928019]
[1643787696420,0.1,38315.0,38311.0,0.74928019]
[1643787697321,0.54709167,38316.0,38311.0,0.74928019]
[1643787697521,0.44709167,38316.0,38311.0,0.24928019]
[1643787697721,0.45112,38315.0,38309.0,0.065262]
[1643787698123,0.6709098,38315.0,38309.0,0.065262]
[1643787698423,0.6709098,38315.0,38310.0,1.0]
[1643787698622,0.45112,38315.0,38310.0,1.0]
[1643787698823,0.1,38315.0,38312.0,0.30473647]
[1643787699223,0.13739039,38317.0,38312.0,0.30473647]
[1643787699423,0.03739039,38317.0,38312.0,0.30473647]
[1643787699626,0.03739039,38317.0,38314.0,0.27247059]
[1643787699824,0.03739039,38317.0,38312.0,0.30473647]
[1643787700471,0.03739039,38317.0,38312.0,0.80473647]
[1643787700872,0.03739039,38317.0,38312.0,1.03408607]
[1643787701071,0.03739039,38317.0,38312.0,0.80473647]
[1643787701271,0.03739039,38317.0,38312.0,0.5]
[1643787701471,0.35112,38316.0,38312.0,0.5]
[1643787702571,0.5723774,38316.0,38312.0,0.5]
[1643787702771,0.35112,38316.0,38312.0,0.5]
[1643787702970,0.03739039,38317.0,38312.0,0.5]
[1643787705223,0.13739039,38317.0,38312.0,0.5]
[1643787705421,0.35112,38316.0,38312.0,0.5]
[1643787705623,0.13739039,38317.0,38312.0,0.5]
[1643787706021,0.13721374,38317.0,38312.0,0.5]
[1643787706623,0.35112,38316.0,38312.0,0.5]
[1643787706821,0.13721374,38317.0,38312.0,0.5]
[1643787707426,0.35112,38316.0,38312.0,0.5]
[1643787708071,0.13721374,38317.0,38312.0,0.5]
[1643787708472,0.35112,38316.0,38312.0,0.5]
[1643787708873,0.13721374,38317.0,38312.0,0.5]
[1643787709073,0.13721374,38317.0,38311.0,0.23389406]
[1643787709975,0.13721374,38317.0,38311.0,0.73389406]
[1643787711822,0.35304949,38317.0,38311.0,0.73389406]
[1643787712422,0.13721374,38317.0,38311.0,0.73389406]
[1643787712823,0.35455293,38317.0,38311.0,0.73389406]
[1643787713423,0.13721374,38317.0,38311.0,0.73389406]
[1643787714224,0.42055899,38317.0,38311.0,0.73389406]
[1643787714423,0.20247474,38317.0,38311.0,0.73389406]
[1643787715275,0.42008122,38317.0,38311.0,0.73389406]
[1643787715477,0.20247474,38317.0,38311.0,0.73389406]
[1643787716074,0.20247474,38317.0,38311.0,0.23389406]
[1643787716674,0.13721374,38317.0,38311.0,0.23389406]
[1643787717073,0.13721374,38317.0,38311.0,0.73389406]
[1643787717675,0.3840313,38318.0,38312.0,0.05]
[1643787717676,0.3318313,38318.0,38312.0,0.05]
[1643787717978,0.00104795,38318.0,38313.0,0.065249]
[1643787718175,0.33078335,38320.0,38313.0,0.065249]
[1643787718375,0.00104796,38318.0,38313.0,0.065249]
[1643787718575,0.00104796,38318.0,38317.0,0.26104488]
[1643787719021,0.00104796,38318.0,38317.0,0.4908242]
[1643787719421,0.10591282,38321.0,38317.0,0.4908242]
[1643787719622,0.00104785,38319.0,38317.0,0.9908242]
[1643787720033,0.00104785,38319.0,38317.0,1.0408242]
[1643787720229,0.00104785,38319.0,38317.0,1.1560722]
[1643787720426,0.33078335,38323.0,38317.0,1.1060722]
[1643787720826,0.00104784,38320.0,38318.0,0.06524239]
[1643787721328,0.00104784,38320.0,38318.0,0.05524239]
[1643787721728,0.33078335,38323.0,38318.0,0.05524239]
[1643787721925,0.33078335,38324.0,38318.0,0.05524239]
[1643787722126,0.33078335,38324.0,38319.0,0.065245]
[1643787722326,0.33078335,38324.0,38319.0,0.565245]
[1643787722578,0.33078335,38323.0,38319.0,0.615245]
[1643787722872,0.33078335,38324.0,38319.0,0.615245]
[1643787723072,0.00104927,38323.0,38320.0,0.21628375]
[1643787723471,0.00104927,38323.0,38322.0,0.29384742]
[1643787724072,0.33078335,38324.0,38322.0,0.29384742]
[1643787724277,0.33188025,38324.0,38322.0,0.29384742]
[1643787725377,0.33078335,38324.0,38322.0,0.29384742]
[1643787726623,0.33078335,38324.0,38322.0,0.79384742]
[1643787727524,0.00112645,38325.0,38322.0,0.79384742]
[1643787727525,0.3319098,38325.0,38322.0,0.79384742]
[1643787727726,0.33078335,38325.0,38322.0,0.79384742]
[1643787727927,0.35703213,38324.0,38322.0,0.79384742]
[1643787729126,0.35703213,38324.0,38319.0,0.065246]
[1643787729327,0.35703213,38324.0,38320.0,0.5]
[1643787729928,0.42228113,38324.0,38320.0,0.5]
[1643787730178,0.42228113,38324.0,38319.0,0.065246]
[1643787730478,0.07219239,38324.0,38320.0,0.27582732]
[1643787730680,0.35112,38323.0,38320.0,0.32582732]
[1643787730879,0.35112,38323.0,38320.0,0.39107132]
[1643787731278,0.00591213,38324.0,38320.0,0.39107132]
[1643787731478,0.0010444,38323.0,38320.0,0.39107132]
[1643787732478,0.00591213,38324.0,38320.0,0.39107132]
[1643787732680,0.0010444,38323.0,38320.0,0.39107132]
[1643787733280,0.0010444,38323.0,38320.0,0.34107132]
[1643787733482,0.0010444,38323.0,38320.0,0.065244]
[1643787733682,0.00591213,38324.0,38320.0,0.065244]
[1643787733925,0.35216986,38323.0,38320.0,0.065244]
[1643787734927,0.35112,38323.0,38320.0,0.065244]
[1643787735126,0.35216691,38323.0,38320.0,0.065244]
[1643787736132,0.00591213,38324.0,38320.0,0.065244]
[1643787736328,0.00104691,38323.0,38320.0,0.065244]
[1643787736530,0.00104691,38323.0,38320.0,0.28517042]
[1643787737029,0.00104691,38323.0,38320.0,0.065244]
[1643787737580,0.35112,38322.0,38313.0,0.130503]
[1643787737771,0.3318295,38323.0,38313.0,0.130503]
[1643787737772,0.3318295,38323.0,38315.0,0.05]
[1643787737970,0.35112,38322.0,38315.0,0.05]
[1643787738372,0.25319299,38319.0,38315.0,0.05]
[1643787738773,0.22625713,38318.0,38315.0,0.05]
[1643787738970,0.22625713,38318.0,38316.0,0.065255]
[1643787739772,0.0522,38321.0,38316.0,0.065255]
[1643787739972,0.00104687,38319.0,38316.0,0.065255]
[1643787740971,0.25746003,38320.0,38316.0,0.065255]
[1643787740972,0.59238136,38320.0,38316.0,0.065255]
[1643787741174,0.35216695,38319.0,38316.0,0.065255]
[1643787742221,0.35112,38319.0,38316.0,0.065255]
[1643787742419,0.0010468,38319.0,38316.0,0.065255]
[1643787743422,0.52712636,38320.0,38316.0,0.065255]
[1643787743622,0.0010468,38319.0,38316.0,0.065255]
[1643787744624,0.33492133,38320.0,38316.0,0.065255]
[1643787744825,0.0010468,38319.0,38316.0,0.065255]
[1643787745676,0.26966633,38320.0,38316.0,0.065255]
[1643787745876,0.00104683,38319.0,38316.0,0.065255]
[1643787746879,0.26966633,38320.0,38316.0,0.065255]
[1643787747077,0.00104683,38319.0,38316.0,0.065255]
[1643787748078,0.26966633,38320.0,38316.0,0.065255]
[1643787748479,0.00104683,38319.0,38316.0,0.065255]
[1643787749226,0.00104683,38319.0,38316.0,0.37439553]
[1643787749425,0.0522,38321.0,38316.0,0.37439553]
[1643787749626,0.00104682,38319.0,38318.0,0.22651372]
[1643787749827,0.00104682,38319.0,38318.0,0.49551364]
[1643787750026,0.00104682,38319.0,38318.0,0.35348784]
[1643787750425,0.00104682,38319.0,38318.0,0.44761207]
[1643787750626,0.00591213,38324.0,38318.0,0.44761207]
[1643787750627,0.00591213,38324.0,38319.0,0.065241]
[1643787750827,0.00104681,38320.0,38318.0,0.45699572]
[1643787751227,0.00104681,38320.0,38318.0,0.50483521]
[1643787751930,0.00591213,38324.0,38318.0,0.50483521]
[1643787752327,0.00591213,38324.0,38319.0,0.06524085]
[1643787752581,0.00591213,38324.0,38320.0,0.065243]
[1643787752775,0.00591213,38324.0,38320.0,0.099343]
[1643787753375,0.00591213,38324.0,38321.0,0.05]
[1643787753577,0.35112,38323.0,38321.0,0.05]
[1643787753876,0.00591213,38324.0,38321.0,0.05]
[1643787754276,0.00591213,38324.0,38321.0,0.115246]
[1643787754480,0.00708868,38324.0,38321.0,0.115246]
[1643787754676,0.00708868,38324.0,38321.0,0.065246]
[1643787755277,0.00591213,38324.0,38321.0,0.065246]
[1643787755676,0.00708868,38324.0,38321.0,0.065246]
[1643787756523,0.00591213,38324.0,38321.0,0.065246]
[1643787756723,0.00708868,38324.0,38321.0,0.065246]
[1643787756924,0.35112,38323.0,38321.0,0.065246]
[1643787757126,0.00117655,38324.0,38321.0,0.065246]
[1643787757825,0.39602735,38327.0,38321.0,0.065246]
[1643787758027,0.00117655,38324.0,38321.0,0.115246]
[1643787759028,0.065247,38326.0,38321.0,0.115246]
[1643787759227,0.00102958,38324.0,38321.0,0.115246]
[1643787760178,0.39603035,38326.0,38321.0,0.115246]
[1643787760374,0.00102958,38324.0,38321.0,0.05]
[1643787760576,0.06627858,38324.0,38321.0,0.05]
[1643787760776,0.35112,38323.0,38320.0,0.05]
[1643787760976,0.06627858,38324.0,38319.0,0.115249]
[1643787761175,0.06627858,38324.0,38320.0,0.05]
[1643787761376,0.065249,38324.0,38320.0,0.05]
[1643787761574,0.00102959,38323.0,38319.0,0.165249]
[1643787762176,0.00102959,38323.0,38319.0,0.230496]
[1643787762677,0.065249,38324.0,38319.0,0.230496]
[1643787764530,0.00591163,38325.0,38319.0,0.230496]
[1643787764732,0.00591163,38325.0,38321.0,0.065245]
[1643787764929,0.39602935,38326.0,38322.0,0.23192852]
[1643787764930,0.33078335,38326.0,38322.0,0.23192852]
[1643787765136,0.38591391,38328.0,38322.0,0.23192852]
[1643787765137,0.33078335,38328.0,38322.0,0.23192852]
[1643787765331,0.33078335,38330.0,38322.0,0.40328852]
[1643787765534,0.33078335,38331.0,38324.0,0.065228]
[1643787765743,0.38591391,38333.0,38325.0,0.40535903]
[1643787765744,0.33078335,38333.0,38325.0,0.40535903]
[1643787765933,0.33078335,38334.0,38331.0,0.24728613]
[1643787766134,0.35112,38333.0,38331.0,0.42654013]
[1643787766337,0.33078335,38334.0,38331.0,0.47654013]
[1643787766536,0.16270948,38337.0,38331.0,0.47654013]
[1643787766537,0.33078335,38337.0,38331.0,0.47654013]
[1643787767035,0.33078335,38338.0,38332.0,0.06522]
[1643787767235,0.33078335,38338.0,38334.0,0.06522]
[1643787767434,0.33078335,38338.0,38334.0,0.11522]
[1643787767688,0.55216482,38339.0,38334.0,0.11522]
[1643787768085,0.55216482,38339.0,38335.0,0.21735006]
[1643787768685,0.55216482,38339.0,38334.0,0.11522]
[1643787768886,0.22138147,38339.0,38334.0,0.11522]
[1643787769087,0.35112,38338.0,38334.0,0.11522]
[1643787769290,0.22138147,38339.0,38336.0,0.065221]
[1643787769488,0.35112,38338.0,38334.0,0.31774127]
[1643787769691,0.22138147,38339.0,38334.0,0.1]
[1643787769888,0.22138147,38339.0,38334.0,0.31833104]
[1643787770092,0.00122654,38338.0,38335.0,0.06522]
[1643787770888,0.33078335,38340.0,38335.0,0.06522]
[1643787771090,0.33078335,38340.0,38336.0,0.065221]
[1643787771328,0.00122128,38338.0,38336.0,0.115221]
[1643787772130,0.33078335,38340.0,38336.0,0.115221]
[1643787772330,0.00122127,38339.0,38336.0,0.3949648]
[1643787773229,0.00122127,38339.0,38336.0,0.61692522]
[1643787773430,0.43078335,38342.0,38336.0,0.3949648]
[1643787773631,0.00122127,38339.0,38336.0,0.3949648]
[1643787773830,0.00122127,38339.0,38336.0,0.115221]
[1643787774630,0.33078335,38341.0,38336.0,0.115221]
[1643787774831,0.00116938,38339.0,38336.0,0.065221]
[1643787775875,0.33078335,38341.0,38336.0,0.065221]
[1643787776074,0.00116938,38339.0,38336.0,0.065221]
[1643787776676,0.00116938,38339.0,38336.0,0.28406062]
[1643787776876,0.00116938,38339.0,38336.0,0.3570838]
[1643787777077,0.33078335,38343.0,38336.0,0.3570838]
[1643787777277,0.00116938,38339.0,38336.0,0.191291]
[1643787777476,0.00116938,38339.0,38337.0,0.38781192]
[1643787777677,0.00116938,38339.0,38338.0,0.03379643]
[1643787778276,0.07609651,38346.0,38340.0,0.06520749]
[1643787778477,0.33550665,38347.0,38342.0,0.065208]
[1643787778830,0.01841091,38344.0,38342.0,0.115208]
[1643787779030,0.0047233,38347.0,38342.0,0.115208]
[1643787779431,0.01,38349.0,38346.0,0.22174684]
[1643787779432,0.34078335,38349.0,38346.0,0.22174684]
[1643787779634,0.00118098,38346.0,38344.0,0.065204]
[1643787780332,0.00118098,38346.0,38345.0,2.93349333]
[1643787780535,0.01,38349.0,38346.0,0.21317593]
[1643787781031,0.00118096,38347.0,38346.0,0.21317593]
[1643787781432,0.00118096,38347.0,38345.0,2.71586801]
[1643787781633,0.00118096,38347.0,38345.0,0.1]
[1643787781833,0.35112,38346.0,38345.0,0.1]
[1643787782034,0.35229976,38348.0,38345.0,0.05]
[1643787783081,0.35112,38348.0,38345.0,0.05]
[1643787783283,0.35229975,38348.0,38345.0,0.05]
[1643787784280,0.35041399,38348.0,38345.0,0.05]
[1643787784479,0.35159374,38348.0,38345.0,0.05]
[1643787784682,0.35159374,38348.0,38342.0,0.130405]
[1643787784882,0.35159374,38348.0,38343.0,0.5]
[1643787784883,0.73665681,38347.0,38343.0,0.5]
[1643787785082,0.68190335,38346.0,38343.0,0.5]
[1643787785281,0.48298335,38345.0,38343.0,0.5]
[1643787785481,0.21696286,38341.0,38334.0,0.27500256]
[1643787785681,0.403058,38340.0,38334.0,0.27500256]
[1643787785884,0.0522,38340.0,38334.0,0.27500256]
[1643787786081,0.0522,38340.0,38332.0,0.40995936]
[1643787786326,0.0522,38340.0,38330.0,0.39329546]
[1643787786523,0.117425,38340.0,38330.0,0.165222]
[1643787786723,0.00118047,38337.0,38330.0,0.165222]
[1643787786925,0.05338047,38337.0,38330.0,0.165222]
[1643787787125,0.05338047,38337.0,38332.0,0.26950496]
[1643787787324,0.05338047,38337.0,38333.0,0.115223]
[1643787787525,0.05338047,38337.0,38333.0,0.165223]
[1643787787727,0.0522,38337.0,38333.0,0.165223]
[1643787787926,0.05338047,38337.0,38333.0,0.165223]
[1643787788728,0.05338047,38337.0,38333.0,0.1]
[1643787788929,0.0522,38337.0,38333.0,0.1]
[1643787789129,0.350858,38336.0,38331.0,0.05]
[1643787789330,0.0522,38335.0,38334.0,0.05]
[1643787789529,0.403058,38335.0,38334.0,0.05]
[1643787789728,0.403058,38335.0,38328.0,0.180449]
[1643787789928,0.35883526,38335.0,38330.0,0.2801911]
[1643787790177,0.35883526,38335.0,38330.0,0.3954201]
[1643787790377,0.00118036,38334.0,38330.0,0.4454201]
[1643787790578,0.0522,38333.0,38330.0,0.4454201]
[1643787791577,0.05338038,38333.0,38330.0,0.4454201]
[1643787792378,0.05338038,38333.0,38330.0,0.165229]
[1643787792578,0.0522,38333.0,38330.0,0.1]
[1643787792777,0.350858,38332.0,38331.0,0.05]
[1643787792978,0.403058,38332.0,38331.0,0.05]
[1643787793178,0.668117,38332.0,38322.0,0.18047]
[1643787793380,0.668117,38332.0,38322.0,0.05]
[1643787793381,0.24450555,38324.0,38322.0,0.05]
[1643787793579,0.24450555,38324.0,38318.0,0.0031]
[1643787793580,0.0522,38323.0,38318.0,0.0031]
[1643787793828,0.0522,38323.0,38318.0,0.068349]
[1643787794024,0.0522,38323.0,38319.0,0.30880282]
[1643787794625,0.0522,38323.0,38320.0,0.27830405]
[1643787794826,0.0011805,38325.0,38322.0,0.63048421]
[1643787795025,0.0522,38330.0,38326.0,0.06523]
[1643787796027,0.0522,38330.0,38328.0,1.97152811]
[1643787796226,0.0522,38330.0,38328.0,2.02152811]
[1643787796430,0.05338044,38330.0,38328.0,2.02152811]
[1643787796629,0.05338044,38330.0,38328.0,2.37741047]
[1643787796827,0.05338044,38330.0,38328.0,2.42741047]
[1643787797427,0.0522,38330.0,38328.0,2.42741047]
[1643787798681,0.05189976,38330.0,38328.0,2.42741047]
[1643787799182,0.05189976,38330.0,38327.0,0.065233]
[1643787799183,0.653,38329.0,38320.0,0.065245]
[1643787799377,0.653,38321.0,38318.0,0.0031]
[1643787799577,0.0522,38320.0,38318.0,0.0031]
[1643787799977,0.0522,38320.0,38319.0,0.20582933]
[1643787800378,0.0522,38320.0,38318.0,0.0031]
[1643787801179,0.0522,38320.0,38318.0,0.0531]
[1643787801427,0.0522,38320.0,38318.0,0.0031]
[1643787804227,0.0522,38320.0,38318.0,0.068351]
[1643787804830,0.0522,38320.0,38318.0,0.118351]
[1643787805088,0.0522,38320.0,38319.0,0.05]
[1643787806083,0.0522,38320.0,38319.0,0.11524555]
[1643787806687,0.0522,38320.0,38319.0,0.96610355]
[1643787806886,0.0522,38320.0,38319.0,0.51610355]
[1643787807187,0.8931069,38330.0,38321.0,0.130472]
[1643787807188,0.23501373,38328.0,38321.0,0.130472]